fUST/lending_fUST_20250608
["ID","MTS","AMOUNT","RATE_DAILY","PERIOD"]
[364987629,1749384646102,-235.64708101,0.00020273,2]
[364987630,1749384646111,-440.0,0.00020273,2]
[364987631,1749384646122,-440.0,0.00020273,2]
[364987632,1749384646131,-440.0,0.00020273,2]
[364987633,1749384646141,-151.0,0.00020273,2]
[364987634,1749384646150,-440.0,0.00020273,2]
[364987635,1749384646160,-440.0,0.00020273,2]
[364987636,1749384646170,-440.0,0.00020273,2]
[364987637,1749384646180,-440.0,0.00020273,2]
[364987638,1749384646189,-440.0,0.00020273,2]
[364987639,1749384646199,-151.0,0.00020273,2]
[364987640,1749384646209,-440.0,0.00020273,2]
[364987641,1749384646219,-440.0,0.00020273,2]
[364987642,1749384646228,-440.0,0.00020273,2]
[364987643,1749384646238,-420.0,0.00020273,2]
[364987644,1749384646248,-440.0,0.00020273,2]
[364987645,1749384646258,-717.08,0.00020273,2]
[364987646,1749384646267,-698.82,0.00020273,2]
[364987648,1749384646277,-420.0,0.00020273,2]
[364987650,1749384646287,-440.0,0.00020273,2]
[364987652,1749384646296,-430.0,0.00020273,2]
[364987654,1749384646306,-440.0,0.00020273,2]
[364987656,1749384646316,-440.0,0.00020273,2]
[364987658,1749384646326,-430.0,0.00020273,2]
[364987660,1749384646335,-440.0,0.00020273,2]
[364987662,1749384646345,-440.0,0.00020273,2]
[364987664,1749384646355,-440.0,0.00020273,2]
[364987666,1749384646364,-937.47,0.00020273,2]
[364987668,1749384646374,-410.0,0.00020273,2]
[364987670,1749384646383,-360.0,0.00020273,2]
[364987672,1749384646393,-440.0,0.00020273,2]
[364987674,1749384646402,-440.0,0.00020273,2]
[364987675,1749384646411,-1904.82,0.00020273,2]
[364987676,1749384646421,-440.0,0.00020273,2]
[364987677,1749384646431,-440.0,0.00020273,2]
[364987678,1749384646441,-440.0,0.00020273,2]
[364987679,1749384646452,-440.0,0.00020273,2]
[364987680,1749384646461,-175.41635084,0.00020273,2]
[364987681,1749384646471,-440.0,0.00020273,2]
[364987682,1749384646480,-572.58106463,0.00020273,2]
[364987683,1749384646489,-463.81,0.00020273,2]
[364987684,1749384646499,-708.52,0.00020273,2]
[364987685,1749384646509,-440.0,0.00020273,2]
[364987686,1749384646519,-440.0,0.00020273,2]
[364987687,1749384646529,-440.0,0.00020273,2]
[364987688,1749384646539,-440.0,0.00020273,2]
[364987689,1749384646549,-440.0,0.00020273,2]
[364987690,1749384646563,-440.0,0.00020273,2]
[364987691,1749384646573,-440.0,0.00020273,2]
[364987692,1749384646583,-440.0,0.00020273,2]
[364987693,1749384646592,-440.0,0.00020273,2]
[364987694,1749384646602,-440.0,0.00020273,2]
[364987695,1749384646612,-440.0,0.00020273,2]
[364987696,1749384646621,-568.84612861,0.00020273,2]
[364987697,1749384646632,-440.0,0.00020273,2]
[364987698,1749384646642,-440.0,0.00020273,2]
[364987699,1749384646652,-1012.07,0.00020273,2]
[364987700,1749384646662,-1500.68,0.00020273,2]
[364987701,1749384646671,-151.0,0.00020273,2]
[364987702,1749384646681,-440.0,0.00020273,2]
[364987703,1749384646691,-420.0,0.00020273,2]
[364987704,1749384646701,-627.61,0.00020273,2]
[364987705,1749384646711,-151.0,0.00020273,2]
[364987706,1749384646720,-458.38289887,0.00020273,2]
[364987707,1749384646730,-472.27,0.00020273,2]
[364987708,1749384646739,-430.0,0.00020273,2]
[364987709,1749384646749,-152.719677,0.00020273,2]
[364987710,1749384646758,-440.0,0.00020273,2]
[364987711,1749384646768,-440.0,0.00020273,2]
[364987712,1749384646777,-440.0,0.00020273,2]
[364987713,1749384646786,-2760.87,0.00020273,2]
[364987714,1749384646796,-440.0,0.00020273,2]
[364987715,1749384646806,-2205.42,0.00020273,2]
[364987716,1749384646816,-440.0,0.00020273,2]
[364987717,1749384646826,-440.0,0.00020273,2]
[364987718,1749384646835,-1291.01,0.00020273,2]
[364987719,1749384646844,-440.0,0.00020273,2]
[364987720,1749384646854,-151.0,0.00020273,2]
[364987721,1749384646864,-440.0,0.00020273,2]
[364987722,1749384646874,-440.0,0.00020273,2]
[364987723,1749384646884,-151.0,0.00020273,2]
[364987724,1749384646894,-151.0,0.00020273,2]
[364987725,1749384646904,-440.0,0.00020273,2]
[364987726,1749384646914,-440.0,0.00020273,2]
[364987727,1749384646924,-2473.16,0.00020273,2]
[364987728,1749384646934,-440.0,0.00020273,2]
[364987729,1749384646944,-779.1,0.00020273,2]
[364987730,1749384646954,-440.0,0.00020273,2]
[364987731,1749384646964,-440.0,0.00020273,2]
[364987732,1749384646973,-440.0,0.00020273,2]
[364987733,1749384646983,-440.0,0.00020273,2]
[364987734,1749384646993,-430.0,0.00020273,2]
[364987735,1749384647003,-440.0,0.00020273,2]
[364987736,1749384647013,-1603.57,0.00020273,2]
[364987737,1749384647023,-151.0,0.00020273,2]
[364987738,1749384647033,-2760.88,0.00020273,2]
[364987739,1749384647043,-440.0,0.00020273,2]
[364987740,1749384647052,-440.0,0.00020273,2]
[364987741,1749384647062,-151.0,0.00020273,2]
[364987742,1749384647072,-471.445303,0.00020273,2]
[364987743,1749384647083,-440.0,0.00020273,2]
[364987744,1749384647093,-440.0,0.00020273,2]
[364987745,1749384647103,-440.0,0.00020273,2]
[364987746,1749384647113,-1583.43,0.00020273,2]
[364987747,1749384647123,-430.0,0.00020273,2]
[364987748,1749384647132,-687.75,0.00020273,2]
[364987749,1749384647142,-440.0,0.00020273,2]
[364987750,1749384647151,-450.46,0.00020273,2]
[364987751,1749384647160,-966.08,0.00020273,2]
[364987752,1749384647170,-1825.6,0.00020273,2]
[364987753,1749384647181,-681.26,0.00020273,2]
[364987754,1749384647190,-151.0,0.00020273,2]
[364987755,1749384647200,-152.047662,0.00020273,2]
[364987756,1749384647210,-350.94337842,0.00020273,2]
[364987757,1749384647219,-440.0,0.00020273,2]
[364987758,1749384647229,-440.0,0.00020273,2]
[364987759,1749384647239,-151.0,0.00020273,2]
[364987760,1749384647248,-151.0,0.00020273,2]
[364987761,1749384647258,-1000.0,0.00020285,2]
[364987762,1749384647268,-502.21597593,0.00020285,2]
[364987763,1749384647278,-1000.0,0.00020367,2]
[364987764,1749384647288,-1000.0,0.00020367,2]
[364987765,1749384647298,-1000.0,0.0002038,2]
[364987766,1749384647309,-1000.0,0.0002038,2]
[364987767,1749384647319,-970.40782091,0.00020395,2]
[364987768,1749384647328,-440.0,0.00020547,2]
[364987769,1749384647338,-323.78931813,0.00020547,2]
[364987770,1749384647348,-440.0,0.00020547,2]
[364987771,1749384647358,-440.0,0.00020547,2]
[364987772,1749384647367,-440.0,0.00020547,2]
[364987773,1749384647377,-430.0,0.00020547,2]
[364987774,1749384647387,-440.0,0.00020547,2]
[364987775,1749384647396,-440.0,0.00020547,2]
[364987776,1749384647406,-430.44128043,0.00020547,2]
[364987777,1749384647416,-525.43150531,0.00020547,2]
[364987778,1749384647426,-440.0,0.00020547,2]
[364987779,1749384647436,-442.68339239,0.00020547,2]
[364987780,1749384647446,-430.0,0.00020547,2]
[364987781,1749384647456,-440.0,0.00020547,2]
[364987782,1749384647466,-440.0,0.00020547,2]
[364987783,1749384647475,-440.0,0.00020547,2]
[364987784,1749384647485,-369.41697352,0.00020547,2]
[364987785,1749384647495,-151.0,0.00020547,2]
[364987786,1749384647505,-440.0,0.00020547,2]
[364987787,1749384647515,-440.0,0.00020547,2]
[364987788,1749384647525,-440.0,0.00020547,2]
[364987789,1749384647534,-440.0,0.00020547,2]
[364987790,1749384647544,-440.0,0.00020547,2]
[364987791,1749384647554,-430.0,0.00020547,2]
[364987792,1749384647571,-440.0,0.00020547,2]
[364987793,1749384647683,-440.0,0.00020547,2]
[364987794,1749384647694,-445.63660537,0.00020547,2]
[364987795,1749384647705,-440.0,0.00020547,2]
[364987796,1749384647714,-440.0,0.00020547,2]
[364987797,1749384647724,-440.0,0.00020547,2]
[364987798,1749384647735,-370.0,0.00020547,2]
[364987799,1749384647745,-450.08952511,0.00020547,2]
[364987800,1749384647756,-440.0,0.00020547,2]
[364987801,1749384647765,-440.0,0.00020547,2]
[364987802,1749384647775,-440.0,0.00020547,2]
[364987803,1749384647784,-500.0,0.00020547,2]
[364987804,1749384647794,-440.0,0.00020547,2]
[364987805,1749384647805,-440.0,0.00020547,2]
[364987806,1749384647815,-440.0,0.00020547,2]
[364987807,1749384647825,-717.08,0.00020547,2]
[364987808,1749384647835,-698.82,0.00020547,2]
[364987809,1749384647844,-469.0191183,0.00020547,2]
[364987810,1749384647853,-440.0,0.00020547,2]
[364987811,1749384647863,-440.0,0.00020547,2]
[364987812,1749384647873,-440.0,0.00020547,2]
[364987813,1749384647883,-440.0,0.00020547,2]
[364987814,1749384647893,-440.0,0.00020547,2]
[364987815,1749384647903,-937.47,0.00020547,2]
[364987816,1749384647912,-440.0,0.00020547,2]
[364987817,1749384647922,-440.0,0.00020547,2]
[364987818,1749384647931,-1904.82,0.00020547,2]
[364987819,1749384647942,-440.0,0.00020547,2]
[364987820,1749384647951,-151.0,0.00020547,2]
[364987821,1749384647961,-440.0,0.00020547,2]
[364987822,1749384647970,-440.0,0.00020547,2]
[364987823,1749384647979,-374.63903373,0.00020547,2]
[364987824,1749384647989,-440.0,0.00020547,2]
[364987825,1749384647999,-160.0,0.00020547,2]
[364987826,1749384648008,-151.0,0.00020547,2]
[364987827,1749384648018,-708.52,0.00020547,2]
[364987828,1749384648028,-440.0,0.00020547,2]
[364987829,1749384648039,-151.0,0.00020547,2]
[364987830,1749384648049,-440.0,0.00020547,2]
[364987831,1749384648058,-440.0,0.00020547,2]
[364987832,1749384648069,-420.0,0.00020547,2]
[364987833,1749384648079,-440.0,0.00020547,2]
[364987834,1749384648089,-440.0,0.00020547,2]
[364987835,1749384648099,-151.784493,0.00020547,2]
[364987836,1749384648109,-151.0,0.00020547,2]
[364987837,1749384648119,-440.0,0.00020547,2]
[364987838,1749384648129,-151.0,0.00020547,2]
[364987839,1749384648140,-440.0,0.00020547,2]
[364987840,1749384648149,-440.0,0.00020547,2]
[364987841,1749384648159,-151.0,0.00020547,2]
[364987842,1749384648170,-440.0,0.00020547,2]
[364987843,1749384648181,-430.0,0.00020547,2]
[364987844,1749384648192,-440.0,0.00020547,2]
[364987845,1749384648202,-1012.07,0.00020547,2]
[364987846,1749384648213,-1500.68,0.00020547,2]
[364987847,1749384648224,-440.0,0.00020547,2]
[364987848,1749384648234,-627.61,0.00020547,2]
[364987849,1749384648244,-472.27,0.00020547,2]
[364987850,1749384648255,-440.0,0.00020547,2]
[364987851,1749384648266,-440.0,0.00020547,2]
[364987852,1749384648277,-440.0,0.00020547,2]
[364987853,1749384648287,-2760.87,0.00020547,2]
[364987854,1749384648298,-440.0,0.00020547,2]
[364987855,1749384648308,-2205.42,0.00020547,2]
[364987856,1749384648319,-440.0,0.00020547,2]
[364987857,1749384648330,-440.0,0.00020547,2]
[364987858,1749384648340,-1291.01,0.00020547,2]
[364987859,1749384648350,-440.0,0.00020547,2]
[364987860,1749384648361,-440.0,0.00020547,2]
[364987861,1749384648371,-440.0,0.00020547,2]
[364987862,1749384648381,-440.0,0.00020547,2]
[364987863,1749384648391,-440.0,0.00020547,2]
[364987864,1749384648401,-2473.16,0.00020547,2]
[364987865,1749384648411,-440.0,0.00020547,2]
[364987866,1749384648421,-779.1,0.00020547,2]
[364987867,1749384648431,-440.0,0.00020547,2]
[364987868,1749384648441,-440.0,0.00020547,2]
[364987869,1749384648450,-440.0,0.00020547,2]
[364987870,1749384648461,-440.0,0.00020547,2]
[364987871,1749384648471,-440.0,0.00020547,2]
[364987872,1749384648481,-1603.57,0.00020547,2]
[364987873,1749384648491,-2760.88,0.00020547,2]
[364987874,1749384648501,-440.0,0.00020547,2]
[364987875,1749384648511,-440.0,0.00020547,2]
[364987876,1749384648521,-430.0,0.00020547,2]
[364987877,1749384648531,-440.0,0.00020547,2]
[364987878,1749384648542,-440.0,0.00020547,2]
[364987879,1749384648552,-1583.43,0.00020547,2]
[364987880,1749384648567,-687.75,0.00020547,2]
[364987881,1749384648577,-430.0,0.00020547,2]
[364987882,1749384648586,-450.46,0.00020547,2]
[364987883,1749384648596,-966.08,0.00020547,2]
[364987884,1749384648607,-1825.6,0.00020547,2]
[364987885,1749384648617,-681.26,0.00020547,2]
[364987886,1749384648627,-440.0,0.00020547,2]
[364987887,1749384648638,-440.0,0.00020547,2]
[364987888,1749384648647,-158.130525,0.00020548,2]
[364987889,1749384648658,-1755.35,0.000206,2]
[364987890,1749384648668,-763.31,0.000206,2]
[364987891,1749384648678,-151.0,0.000206,2]
[364987892,1749384648687,-151.0,0.000206,2]
[364987893,1749384648697,-151.0,0.000206,2]
[364987894,1749384648707,-151.0,0.000206,2]
[364987895,1749384648717,-43698.92,0.000206,2]
[364987896,1749384648728,-151.0,0.000206,2]
[364987897,1749384648737,-151.0,0.000206,2]
[364987898,1749384648748,-151.0,0.000206,2]
[364987899,1749384648758,-2000.0,0.00020816,2]
[364987900,1749384648768,-440.0,0.00020821,2]
[364987901,1749384648779,-440.0,0.00020821,2]
[364987902,1749384648789,-440.0,0.00020821,2]
[364987903,1749384648798,-338.49602136,0.00020821,2]
[364987904,1749384648808,-440.0,0.00020821,2]
[364987905,1749384648819,-440.0,0.00020821,2]
[364987906,1749384648828,-426.88712128,0.00020821,2]
[364987907,1749384648838,-440.0,0.00020821,2]
[364987908,1749384648848,-410.0,0.00020821,2]
[364987909,1749384648858,-440.0,0.00020821,2]
[364987910,1749384648868,-440.0,0.00020821,2]
[364987911,1749384648877,-410.0,0.00020821,2]
[364987912,1749384648887,-420.0,0.00020821,2]
[364987913,1749384648897,-400.0,0.00020821,2]
[364987914,1749384648907,-440.0,0.00020821,2]
[364987915,1749384648916,-440.0,0.00020821,2]
[364987916,1749384648926,-440.0,0.00020821,2]
[364987917,1749384648936,-440.0,0.00020821,2]
[364987918,1749384648946,-410.0,0.00020821,2]
[364987919,1749384648956,-440.0,0.00020821,2]
[364987920,1749384648966,-190.08686581,0.00020821,2]
[364987921,1749384648977,-440.0,0.00020821,2]
[364987922,1749384648987,-532.31711347,0.00020821,2]
[364987923,1749384648997,-440.0,0.00020821,2]
[364987924,1749384649007,-440.0,0.00020821,2]
[364987925,1749384649017,-717.08,0.00020821,2]
[364987926,1749384649027,-698.82,0.00020821,2]
[364987927,1749384649037,-440.0,0.00020821,2]
[364987928,1749384649047,-440.0,0.00020821,2]
[364987929,1749384649058,-440.0,0.00020821,2]
[364987930,1749384649068,-440.0,0.00020821,2]
[364987931,1749384649078,-440.0,0.00020821,2]
[364987932,1749384649088,-937.47,0.00020821,2]
[364987933,1749384649098,-440.0,0.00020821,2]
[364987934,1749384649109,-440.0,0.00020821,2]
[364987935,1749384649118,-1904.82,0.00020821,2]
[364987936,1749384649128,-440.0,0.00020821,2]
[364987937,1749384649138,-440.0,0.00020821,2]
[364987938,1749384649148,-440.0,0.00020821,2]
[364987939,1749384649157,-440.0,0.00020821,2]
[364987940,1749384649167,-708.52,0.00020821,2]
[364987941,1749384649177,-440.0,0.00020821,2]
[364987942,1749384649187,-440.0,0.00020821,2]
[364987943,1749384649196,-440.0,0.00020821,2]
[364987944,1749384649206,-440.0,0.00020821,2]
[364987945,1749384649216,-440.0,0.00020821,2]
[364987946,1749384649226,-440.0,0.00020821,2]
[364987947,1749384649235,-440.0,0.00020821,2]
[364987948,1749384649245,-440.0,0.00020821,2]
[364987949,1749384649255,-440.0,0.00020821,2]
[364987950,1749384649265,-440.0,0.00020821,2]
[364987951,1749384649275,-1012.07,0.00020821,2]
[364987952,1749384649385,-151.0,0.00020821,2]
[364987953,1749384649396,-1500.68,0.00020821,2]
[364987954,1749384649406,-440.0,0.00020821,2]
[364987955,1749384649416,-627.61,0.00020821,2]
[364987956,1749384649427,-151.0,0.00020821,2]
[364987957,1749384649437,-472.27,0.00020821,2]
[364987958,1749384649447,-430.0,0.00020821,2]
[364987959,1749384649456,-217.0822292,0.00020821,2]
[364987960,1749384649466,-440.0,0.00020821,2]
[364987961,1749384649475,-2760.87,0.00020821,2]
[364987962,1749384649484,-420.0,0.00020821,2]
[364987963,1749384649495,-2205.42,0.00020821,2]
[364987964,1749384649505,-440.0,0.00020821,2]
[364987965,1749384649514,-420.0,0.00020821,2]
[364987966,1749384649523,-1291.01,0.00020821,2]
[364987967,1749384649532,-440.0,0.00020821,2]
[364987968,1749384649542,-151.0,0.00020821,2]
[364987969,1749384649552,-440.0,0.00020821,2]
[364987970,1749384649570,-151.0,0.00020821,2]
[364987971,1749384649579,-440.0,0.00020821,2]
[364987972,1749384649589,-151.0,0.00020821,2]
[364987973,1749384649598,-440.0,0.00020821,2]
[364987974,1749384649610,-440.0,0.00020821,2]
[364987975,1749384649619,-2473.16,0.00020821,2]
[364987976,1749384649629,-400.0,0.00020821,2]
[364987977,1749384649640,-779.1,0.00020821,2]
[364987978,1749384649650,-160.70859069,0.00020821,2]
[364987979,1749384649659,-440.0,0.00020821,2]
[364987980,1749384649669,-440.0,0.00020821,2]
[364987981,1749384649678,-319.72,0.00020821,2]
[364987982,1749384649688,-440.0,0.00020821,2]
[364987983,1749384649698,-1603.57,0.00020821,2]
[364987984,1749384649708,-2760.88,0.00020821,2]
[364987985,1749384649718,-440.0,0.00020821,2]
[364987986,1749384649728,-440.0,0.00020821,2]
[364987987,1749384649738,-440.0,0.00020821,2]
[364987988,1749384649748,-440.0,0.00020821,2]
[364987989,1749384649758,-1583.43,0.00020821,2]
[364987990,1749384649767,-687.75,0.00020821,2]
[364987991,1749384649777,-450.46,0.00020821,2]
[364987992,1749384649787,-966.08,0.00020821,2]
[364987993,1749384649797,-1825.6,0.00020821,2]
[364987994,1749384649806,-681.26,0.00020821,2]
[364987995,1749384649817,-440.0,0.00020821,2]
[364987996,1749384649826,-440.0,0.00020821,2]
[364987997,1749384649836,-1503.63586101,0.00020833,2]
[364987998,1749384649846,-1200.0,0.00020882,2]
[364987999,1749384649855,-1500.0,0.00020915,2]
[364988000,1749384649865,-1500.0,0.00020915,2]
[364988001,1749384649874,-151.0,0.00020927,2]
[364988002,1749384649884,-151.0,0.00020927,2]
[364988003,1749384649894,-151.0,0.00020927,2]
[364988004,1749384649903,-1092.50529552,0.00020928,2]
[364988005,1749384649912,-566.07978846,0.00020928,2]
[364988006,1749384649921,-270.59,0.00020951,2]
[364988007,1749384649931,-160.0,0.00021055,3]
[364988008,1749384649940,-440.0,0.00021095,2]
[364988009,1749384649949,-440.0,0.00021095,2]
[364988010,1749384649960,-440.0,0.00021095,2]
[364988011,1749384649969,-440.0,0.00021095,2]
[364988012,1749384649979,-440.0,0.00021095,2]
[364988013,1749384649989,-440.0,0.00021095,2]
[364988014,1749384649999,-420.0,0.00021095,2]
[364988015,1749384650008,-440.0,0.00021095,2]
[364988016,1749384650018,-440.0,0.00021095,2]
[364988017,1749384650028,-440.0,0.00021095,2]
[364988018,1749384650039,-440.0,0.00021095,2]
[364988019,1749384650048,-440.0,0.00021095,2]
[364988020,1749384650058,-151.0,0.00021095,2]
[364988021,1749384650068,-440.0,0.00021095,2]
[364988022,1749384650078,-440.0,0.00021095,2]
[364988023,1749384650088,-717.08,0.00021095,2]
[364988024,1749384650098,-698.82,0.00021095,2]
[364988025,1749384650108,-440.0,0.00021095,2]
[364988026,1749384650118,-440.0,0.00021095,2]
[364988027,1749384650129,-440.0,0.00021095,2]
[364988028,1749384650138,-440.0,0.00021095,2]
[364988029,1749384650148,-440.0,0.00021095,2]
[364988030,1749384650158,-937.47,0.00021095,2]
[364988031,1749384650168,-440.0,0.00021095,2]
[364988032,1749384650178,-440.0,0.00021095,2]
[364988033,1749384650188,-1904.82,0.00021095,2]
[364988034,1749384650198,-440.0,0.00021095,2]
[364988035,1749384650207,-440.0,0.00021095,2]
[364988036,1749384650217,-440.0,0.00021095,2]
[364988037,1749384650228,-440.0,0.00021095,2]
[364988038,1749384650238,-151.0,0.00021095,2]
[364988039,1749384650248,-708.52,0.00021095,2]
[364988040,1749384650259,-440.0,0.00021095,2]
[364988041,1749384650268,-151.0,0.00021095,2]
[364988042,1749384650278,-440.0,0.00021095,2]
[364988043,1749384650288,-440.0,0.00021095,2]
[364988044,1749384650297,-440.0,0.00021095,2]
[364988045,1749384650307,-440.0,0.00021095,2]
[364988046,1749384650316,-440.0,0.00021095,2]
[364988047,1749384650326,-440.0,0.00021095,2]
[364988048,1749384650335,-440.0,0.00021095,2]
[364988049,1749384650345,-440.0,0.00021095,2]
[364988050,1749384650354,-440.0,0.00021095,2]
[364988051,1749384650364,-1012.07,0.00021095,2]
[364988052,1749384650374,-1500.68,0.00021095,2]
[364988053,1749384650383,-430.0,0.00021095,2]
[364988054,1749384650394,-627.61,0.00021095,2]
[364988055,1749384650404,-472.27,0.00021095,2]
[364988056,1749384650413,-440.0,0.00021095,2]
[364988057,1749384650423,-2760.87,0.00021095,2]
[364988058,1749384650432,-2205.42,0.00021095,2]
[364988059,1749384650442,-440.0,0.00021095,2]
[364988060,1749384650453,-1291.01,0.00021095,2]
[364988061,1749384650463,-440.0,0.00021095,2]
[364988062,1749384650474,-380.0,0.00021095,2]
[364988063,1749384650484,-440.0,0.00021095,2]
[364988064,1749384650494,-440.0,0.00021095,2]
[364988065,1749384650505,-440.0,0.00021095,2]
[364988066,1749384650515,-2473.16,0.00021095,2]
[364988067,1749384650525,-779.1,0.00021095,2]
[364988068,1749384650535,-440.0,0.00021095,2]
[364988069,1749384650545,-440.0,0.00021095,2]
[364988070,1749384650556,-440.0,0.00021095,2]
[364988071,1749384650568,-1603.57,0.00021095,2]
[364988072,1749384650578,-2760.88,0.00021095,2]
[364988073,1749384650588,-440.0,0.00021095,2]
[364988074,1749384650599,-440.0,0.00021095,2]
[364988075,1749384650609,-440.0,0.00021095,2]
[364988076,1749384650620,-440.0,0.00021095,2]
[364988077,1749384650631,-1583.43,0.00021095,2]
[364988078,1749384650642,-687.75,0.00021095,2]
[364988079,1749384650652,-450.46,0.00021095,2]
[364988080,1749384650662,-966.08,0.00021095,2]
[364988081,1749384650674,-1825.6,0.00021095,2]
[364988082,1749384650684,-681.26,0.00021095,2]
[364988083,1749384650694,-440.0,0.00021095,2]
[364988084,1749384650704,-440.0,0.00021095,2]
[364988085,1749384650713,-502.70591543,0.0002133,2]
[364988086,1749384650723,-505.162816,0.00021364,2]
[364988087,1749384650733,-400.0,0.00021369,2]
[364988088,1749384650743,-440.0,0.00021369,2]
[364988089,1749384650753,-440.0,0.00021369,2]
[364988090,1749384650764,-440.0,0.00021369,2]
[364988091,1749384650773,-440.0,0.00021369,2]
[364988092,1749384650784,-440.0,0.00021369,2]
[364988093,1749384650794,-410.0,0.00021369,2]
[364988094,1749384650804,-390.0,0.00021369,2]
[364988095,1749384650813,-440.0,0.00021369,2]
[364988096,1749384650823,-400.0,0.00021369,2]
[364988097,1749384650833,-440.0,0.00021369,2]
[364988098,1749384650842,-717.08,0.00021369,2]
[364988099,1749384650946,-698.82,0.00021369,2]
[364988100,1749384650956,-440.0,0.00021369,2]
[364988101,1749384650966,-440.0,0.00021369,2]
[364988102,1749384650976,-440.0,0.00021369,2]
[364988103,1749384650988,-440.0,0.00021369,2]
[364988104,1749384650998,-440.0,0.00021369,2]
[364988105,1749384651008,-937.47,0.00021369,2]
[364988106,1749384651019,-440.0,0.00021369,2]
[364988107,1749384651029,-440.0,0.00021369,2]
[364988108,1749384651039,-1904.82,0.00021369,2]
[364988109,1749384651050,-440.0,0.00021369,2]
[364988110,1749384651060,-440.0,0.00021369,2]
[364988111,1749384651071,-440.0,0.00021369,2]
[364988112,1749384651081,-440.0,0.00021369,2]
[364988113,1749384651092,-708.52,0.00021369,2]
[364988114,1749384651103,-440.0,0.00021369,2]
[364988115,1749384651114,-440.0,0.00021369,2]
[364988116,1749384651124,-440.0,0.00021369,2]
[364988117,1749384651134,-440.0,0.00021369,2]
[364988118,1749384651144,-297.33201177,0.00021369,2]
[364988119,1749384651154,-440.0,0.00021369,2]
[364988120,1749384651164,-440.0,0.00021369,2]
[364988121,1749384651173,-440.0,0.00021369,2]
[364988122,1749384651182,-440.0,0.00021369,2]
[364988123,1749384651193,-440.0,0.00021369,2]
[364988124,1749384651203,-1012.07,0.00021369,2]
[364988125,1749384651213,-1500.68,0.00021369,2]
[364988126,1749384651224,-627.61,0.00021369,2]
[364988127,1749384651234,-472.27,0.00021369,2]
[364988128,1749384651245,-174.94,0.00021369,2]
[364988129,1749384651254,-2760.87,0.00021369,2]
[364988130,1749384651264,-2205.42,0.00021369,2]
[364988131,1749384651274,-553.02800191,0.00021369,2]
[364988132,1749384651285,-1291.01,0.00021369,2]
[364988133,1749384651295,-440.0,0.00021369,2]
[364988134,1749384651304,-440.0,0.00021369,2]
[364988135,1749384651315,-440.0,0.00021369,2]
[364988136,1749384651324,-440.0,0.00021369,2]
[364988137,1749384651333,-2473.16,0.00021369,2]
[364988138,1749384651342,-779.1,0.00021369,2]
[364988139,1749384651352,-440.0,0.00021369,2]
[364988140,1749384651361,-440.0,0.00021369,2]
[364988141,1749384651371,-440.0,0.00021369,2]
[364988142,1749384651380,-207.445588,0.00021369,2]